fUST/lending_fUST_20250514
["ID","MTS","AMOUNT","RATE_DAILY","PERIOD"]
[360930768,1747152651474,-400.0,0.00013972,2]
[360930769,1747152651484,-400.0,0.00013972,2]
[360930770,1747152651494,-498.87,0.00013972,2]
[360930771,1747152651504,-1337.2,0.00013972,2]
[360930772,1747152651514,-2006.49,0.00013972,2]
[360930773,1747152651524,-400.0,0.00013972,2]
[360930774,1747152651535,-400.0,0.00013972,2]
[360930775,1747152651545,-504.16,0.00013972,2]
[360930776,1747152651554,-150.53055173,0.00013972,2]
[360930777,1747152651563,-400.0,0.00013972,2]
[360930778,1747152651573,-400.0,0.00013972,2]
[360930779,1747152651583,-400.0,0.00013972,2]
[360930780,1747152651592,-402.71169398,0.00013972,2]
[360930781,1747152651602,-400.0,0.00013972,2]
[360930782,1747152651612,-1732.77,0.00013972,2]
[360930783,1747152651622,-735.35,0.00013972,2]
[360930784,1747152651632,-400.0,0.00013972,2]
[360930785,1747152651642,-400.0,0.00013972,2]
[360930786,1747152651652,-400.0,0.00013972,2]
[360930787,1747152651662,-400.0,0.00013972,2]
[360930788,1747152651672,-400.0,0.00013972,2]
[360930789,1747152651686,-582.42,0.00013972,2]
[360930790,1747152651695,-400.0,0.00013972,2]
[360930791,1747152651704,-400.0,0.00013972,2]
[360930792,1747152651717,-400.0,0.00013972,2]
[360930793,1747152651726,-453.33,0.00013972,2]
[360930794,1747152651736,-400.0,0.00013972,2]
[360930795,1747152651746,-400.0,0.00013972,2]
[360930796,1747152651756,-1075.1,0.00013972,2]
[360930797,1747152651765,-400.0,0.00013972,2]
[360930798,1747152651774,-567.87,0.00013972,2]
[360930799,1747152651784,-400.0,0.00013972,2]
[360930800,1747152651794,-532.34,0.00013972,2]
[360930801,1747152651804,-967.57,0.00013972,2]
[360930802,1747152651814,-488.23,0.00013972,2]
[360930803,1747152651823,-400.0,0.00013972,2]
[360930804,1747152651832,-400.0,0.00013972,2]
[360930805,1747152651842,-400.0,0.00013972,2]
[360930806,1747152651851,-2571.02,0.00013972,2]
[360930807,1747152651860,-431.6,0.00013972,2]
[360930808,1747152651870,-482.03,0.00013972,2]
[360930809,1747152651880,-400.0,0.00013972,2]
[360930810,1747152651889,-1504.02,0.00013972,2]
[360930811,1747152651898,-5290.25,0.00013972,2]
[360930812,1747152651908,-219.23109099,0.00013972,2]
[360930813,1747152651917,-966.18,0.00013972,2]
[360930814,1747152651927,-1490.89,0.00013972,2]
[360930815,1747152651937,-558.94,0.00013972,2]
[360930816,1747152651946,-582.86,0.00013972,2]
[360930817,1747152651956,-400.0,0.00013972,2]
[360930818,1747152651966,-464.96,0.00013972,2]
[360930819,1747152651976,-400.0,0.00013972,2]
[360930820,1747152651988,-151.0,0.00013972,2]
[360930821,1747152651998,-151.0,0.00013972,2]
[360930822,1747152652007,-400.0,0.00013972,2]
[360930823,1747152652017,-151.0,0.00013972,2]
[360930824,1747152652027,-151.0,0.00013972,2]
[360930825,1747152652036,-151.0,0.00013972,2]
[360930826,1747152652046,-151.0,0.00013972,2]
[360930827,1747152652056,-400.0,0.00013972,2]
[360930828,1747152652067,-800.77,0.00013972,2]
[360930829,1747152652077,-1854.64,0.00013972,2]
[360930830,1747152652087,-1949.17,0.00013972,2]
[360930831,1747152652097,-553.0,0.00013972,2]
[360930832,1747152652107,-1233.52,0.00013972,2]
[360930833,1747152652117,-400.0,0.00013972,2]
[360930834,1747152652126,-836.44,0.00013972,2]
[360930835,1747152652137,-400.0,0.00013972,2]
[360930836,1747152652147,-400.0,0.00013972,2]
[360930837,1747152652156,-1061.0,0.00013972,2]
[360930838,1747152652166,-1178.34,0.00013972,2]
[360930839,1747152652176,-2053.43,0.00013972,2]
[360930840,1747152652185,-400.0,0.00013972,2]
[360930841,1747152652195,-400.0,0.00013972,2]
[360930842,1747152652205,-552.21,0.00013972,2]
[360930843,1747152652217,-1815.42,0.00013972,2]
[360930844,1747152652227,-276.5364559,0.00013972,2]
[360930845,1747152652237,-400.0,0.00013972,2]
[360930846,1747152652247,-400.0,0.00013972,2]
[360930847,1747152652256,-10731.55,0.00013972,2]
[360930848,1747152652266,-697.74,0.00013972,2]
[360930849,1747152652275,-400.0,0.00013972,2]
[360930850,1747152652285,-1270.73,0.00013972,2]
[360930851,1747152652295,-423.08,0.00013972,2]
[360930852,1747152652304,-2563.1,0.00013972,2]
[360930853,1747152652314,-24140.65,0.00013972,2]
[360930854,1747152652324,-400.0,0.00013972,2]
[360930855,1747152652334,-400.0,0.00013972,2]
[360930856,1747152652344,-570.62,0.00013972,2]
[360930857,1747152652355,-400.0,0.00013972,2]
[360930858,1747152652365,-803.84,0.00013972,2]
[360930859,1747152652375,-21670.49,0.00013972,2]
[360930860,1747152652385,-612.93,0.00013972,2]
[360930861,1747152652395,-3025.36,0.00013972,2]
[360930862,1747152652405,-1701.23,0.00013972,2]
[360930863,1747152652415,-13207.95,0.00013972,2]
[360930864,1747152652424,-400.0,0.00013972,2]
[360930865,1747152652434,-615.2,0.00013972,2]
[360930866,1747152652444,-400.0,0.00013972,2]
[360930867,1747152652454,-463.7,0.00013972,2]
[360930868,1747152652466,-661.21,0.00013972,2]
[360930869,1747152652476,-400.0,0.00013972,2]
[360930870,1747152652486,-771.05,0.00013972,2]
[360930871,1747152652496,-400.0,0.00013972,2]
[360930872,1747152652505,-6628.1,0.00013972,2]
[360930873,1747152652515,-915.03,0.00013972,2]
[360930874,1747152652525,-549.6,0.00013972,2]
[360930875,1747152652535,-4016.93,0.00013972,2]
[360930876,1747152652545,-400.0,0.00013972,2]
[360930877,1747152652555,-5115.33,0.00013972,2]
[360930878,1747152652565,-400.0,0.00013972,2]
[360930879,1747152652574,-400.0,0.00013972,2]
[360930880,1747152652584,-400.0,0.00013972,2]
[360930881,1747152652593,-523.72,0.00013972,2]
[360930882,1747152652603,-400.0,0.00013972,2]
[360930883,1747152652613,-400.0,0.00013972,2]
[360930884,1747152652622,-2034.1,0.00013972,2]
[360930885,1747152652632,-401.21740877,0.00013972,2]
[360930886,1747152652643,-400.0,0.00013972,2]
[360930887,1747152652652,-400.0,0.00013972,2]
[360930889,1747152652662,-400.0,0.00013972,2]
[360930891,1747152652672,-401.43780266,0.00013972,2]
[360930892,1747152652681,-400.0,0.00013972,2]
[360930893,1747152652691,-400.0,0.00013972,2]
[360930894,1747152652700,-400.0,0.00013972,2]
[360930895,1747152652711,-2915.93,0.00013972,2]
[360930896,1747152652721,-400.0,0.00013972,2]
[360930897,1747152652731,-646.03,0.00013972,2]
[360930898,1747152652740,-713.71,0.00013972,2]
[360930899,1747152652750,-935.48,0.00013972,2]
[360930900,1747152652759,-400.0,0.00013972,2]
[360930902,1747152652769,-403.0591896,0.00013972,2]
[360930904,1747152652778,-589.56,0.00013972,2]
[360930905,1747152652787,-301.18667016,0.00013972,2]
[360930906,1747152652798,-3442.0,0.00013972,2]
[360930907,1747152652807,-15404.4,0.00013972,2]
[360930908,1747152652817,-630.67,0.00013972,2]
[360930909,1747152652826,-400.0,0.00013972,2]
[360930910,1747152652836,-151.0,0.00013972,2]
[360930911,1747152652846,-151.0,0.00013972,2]
[360930912,1747152652855,-641.42,0.00013972,2]
[360930913,1747152652865,-400.0,0.00013972,2]
[360930914,1747152652874,-151.0,0.00013972,2]
[360930915,1747152652885,-151.0,0.00013972,2]
[360930916,1747152652895,-151.0,0.00013972,2]
[360930917,1747152652904,-701.86,0.00013972,2]
[360930918,1747152652914,-442.59,0.00013972,2]
[360930919,1747152652923,-275.91819833,0.00013972,2]
[360930920,1747152652932,-1074.39,0.00013972,2]
[360930921,1747152652942,-400.0,0.00013972,2]
[360930922,1747152652951,-512.65,0.00013972,2]
[360930923,1747152652963,-300.0,0.00013972,2]
[360930924,1747152652974,-401.23000207,0.00013972,2]
[360930925,1747152652985,-400.0,0.00013972,2]
[360930926,1747152652995,-1999.41,0.00013972,2]
[360930927,1747152653004,-989.39,0.00013972,2]
[360930928,1747152653014,-400.0,0.00013972,2]
[360930929,1747152653023,-1027.54155742,0.00013972,2]
[360930930,1747152653056,-216.92844258,0.00013972,2]
[360930931,1747152653066,-1565.29,0.00013972,2]
[360930932,1747152653075,-400.0,0.00013972,2]
[360930933,1747152653085,-1635.41,0.00013972,2]
[360930934,1747152653095,-80.86661232,0.00013972,2]
[360930935,1747152653107,-2500.8274349,0.00013972,2]
[360930945,1747152659555,-400.0,0.00013698,2]
[360930946,1747152659568,-400.5280771,0.00013698,2]
[360930947,1747152659578,-400.0,0.00013698,2]
[360930948,1747152659587,-930.96595278,0.00013972,2]
[360930949,1747152659598,-400.0,0.00013972,2]
[360930950,1747152659608,-400.0,0.00013972,2]
[360930951,1747152659621,-400.0,0.00013972,2]
[360930952,1747152659632,-400.0,0.00013972,2]
[360930953,1747152659641,-429.13,0.00013972,2]
[360930954,1747152659651,-559.24,0.00013972,2]
[360930955,1747152659661,-340.13597168,0.00013972,2]
[360930970,1747153171813,8183.51,0.0002,120]
[360930971,1747153172518,200.0,0.00018896,120]
[360930987,1747153586348,-241.52038207,0.00011149,2]
[360930988,1747153588920,-189.46946149,0.00011149,2]
[360930989,1747153592407,-200.0,0.00011149,2]
[360930990,1747153594164,-216.34533946,0.00011149,2]
[360930991,1747153596300,-236.81198302,0.00011149,2]
[360930993,1747153599565,-190.36410232,0.00011149,2]
[360930994,1747153601111,-303.41674288,0.00011149,2]
[360930995,1747153603975,-172.66059126,0.00011149,2]
[360930996,1747153632105,-3249.4113975,0.00011149,2]
[360930997,1747153632128,-181.0,0.00011261,2]
[360930998,1747153632151,-254.5611619,0.00011659,2]
[360930999,1747153632174,-164.476756,0.0001182,2]
[360931000,1747153632196,-2000.0003146,0.00011881,2]
[360931001,1747153632219,-1200.0,0.0001198,2]
[360931002,1747153632242,-599.75736683,0.00011981,2]
[360931003,1747153638124,-463.88141337,0.00011981,2]
[360931004,1747153638147,-300.0,0.00012172,2]
[360931005,1747153638170,-500.0,0.00012173,2]
[360931006,1747153638193,-500.0,0.00012173,2]
[360931007,1747153638217,-500.0,0.00012173,2]
[360931008,1747153638239,-500.57193664,0.00012173,2]
[360931009,1747153638263,-612.94899836,0.00012173,2]
[360931010,1747153638289,-500.0,0.00012173,2]
[360931011,1747153638333,-500.0,0.00012173,2]
[360931012,1747153638359,-500.0,0.00012173,2]
[360931013,1747153638387,-500.0,0.00012173,2]
[360931014,1747153638415,-318.99200546,0.00012173,2]
[360931015,1747153641130,-181.00799454,0.00012173,2]
[360931016,1747153641152,-165.25385411,0.00012173,2]
[360931017,1747153641176,-500.0,0.00012173,2]
[360931018,1747153641197,-379.11904085,0.00012173,2]
[360931019,1747153641220,-251.10316125,0.00012173,2]
[360931028,1747153729053,301.99999965,0.0002,120]
[360931379,1747153836466,-960.05583154,0.0001193,2]
[360931380,1747153836478,-606.84252089,0.0001193,2]
[360931381,1747153836559,-3433.10164757,0.0001193,2]
[360931382,1747153836569,-194.92858372,0.00012075,2]
[360931383,1747153836579,-300.0,0.00012171,2]
[360931384,1747153836589,-679.19073478,0.00012171,2]
[360931745,1747153842024,-0.01694217,0.00012171,2]
[360932054,1747153846242,-5000.0,0.00012049,2]
[360932055,1747153846252,-520.79232305,0.00012171,2]
[360932056,1747153846263,-300.0,0.00012171,2]
[360932057,1747153846273,-20209.20767695,0.00012173,2]
[360932059,1747153846550,-5385.048028,0.00012173,2]
[360932060,1747153846562,-1638.38773088,0.00012173,2]
[360932106,1747154306722,-389.20936491,0.00010999,2]
[360932108,1747154308471,-299.22165101,0.00010999,2]
[360932109,1747154310422,-153.0109088,0.00010999,2]
[360932110,1747154314102,-229.90412252,0.00010999,2]
[360932111,1747154315654,-264.0313792,0.00010999,2]
[360932114,1747154320044,-271.01813992,0.00010998,2]
[360932115,1747154321489,-228.98186008,0.00010998,2]
[360932116,1747154321513,-72.39322616,0.00010998,2]
[360932118,1747154324228,-207.40129162,0.00010998,2]
[360932120,1747154326206,-220.20548222,0.00010998,2]
[360932121,1747154326231,-26.40061712,0.00010998,2]
[360932123,1747154328352,-198.1904417,0.00010998,2]
[360932124,1747154328376,-46.38737509,0.00010998,2]
[360932127,1747154331519,-375.94441969,0.00010998,2]
[360932128,1747154334502,-77.66820522,0.00010998,2]
[360932129,1747154334527,-153.23544898,0.00010998,2]
[360932130,1747154334552,-10.87237581,0.00010998,2]
[360932131,1747154337037,-293.89529203,0.00010998,2]
[360932132,1747154340918,-151.70063652,0.00010998,2]
[360932133,1747154342584,-43.53169564,0.00010998,2]
[360932134,1747154342611,-261.89652123,0.00010998,2]
[360932135,1747154345225,-169.91242968,0.00010997,2]
[360932136,1747154347203,-130.08757032,0.00010997,2]
[360932137,1747154347229,-37.47040111,0.00010998,2]
[360932138,1747154349130,-200.63307766,0.00010998,2]
[360932139,1747154349154,-160.25887754,0.00010998,2]
[360932140,1747154356027,-175.77105193,0.00010998,2]
[360932141,1747154357740,-163.97007053,0.00010998,2]
[360932142,1747154357764,-486.55622354,0.00010998,2]
[360932143,1747154357786,-500.0,0.00010998,2]
[360932144,1747154357808,-500.0,0.00010998,2]
[360932145,1747154357830,-500.0,0.00010998,2]
[360932146,1747154357854,-500.0,0.00010998,2]
[360932147,1747154357894,-500.0,0.00010998,2]
[360932148,1747154357918,-500.0,0.00010998,2]
[360932149,1747154357942,-500.0,0.00010998,2]
[360932150,1747154357965,-500.0,0.00010998,2]
[360932151,1747154357988,-500.0,0.00010998,2]
[360932152,1747154358012,-500.0,0.00010998,2]
[360932153,1747154358038,-500.0,0.00010998,2]
[360932154,1747154358062,-500.0,0.00010998,2]
[360932155,1747154358085,-500.0,0.00010998,2]
[360932156,1747154358111,-500.0,0.00010998,2]
[360932157,1747154358134,-500.0,0.00010998,2]
[360932158,1747154358158,-500.0,0.00010998,2]
[360932159,1747154358182,-500.0,0.00010998,2]
[360932160,1747154358205,-500.0,0.00010998,2]
[360932161,1747154358229,-500.0,0.00010998,2]
[360932162,1747154358253,-500.0,0.00010998,2]
[360932163,1747154358276,-500.0,0.00010998,2]
[360932164,1747154358300,-500.0,0.00010998,2]
[360932165,1747154358323,-500.0,0.00010998,2]
[360932166,1747154358346,-500.0,0.00010998,2]
[360932167,1747154358371,-500.0,0.00010998,2]
[360932168,1747154358396,-500.0,0.00010998,2]
[360932169,1747154358420,-500.0,0.00010998,2]
[360932170,1747154358444,-500.0,0.00010998,2]
[360932171,1747154358468,-500.0,0.00010998,2]
[360932172,1747154358492,-500.0,0.00010998,2]
[360932173,1747154358525,-500.0,0.00010998,2]
[360932174,1747154358551,-500.0,0.00010998,2]
[360932175,1747154358577,-500.0,0.00010998,2]
[360932176,1747154358610,-500.0,0.00010998,2]
[360932177,1747154358636,-500.0,0.00010998,2]
[360932178,1747154358663,-500.0,0.00010998,2]
[360932179,1747154358689,-421.69093847,0.00010998,2]
[360932180,1747154358715,-500.0,0.00010998,2]
[360932181,1747154358739,-500.0,0.00010998,2]
[360932182,1747154358764,-500.0,0.00010998,2]
[360932183,1747154358789,-500.0,0.00010998,2]
[360932184,1747154358812,-500.0,0.00010998,2]
[360932185,1747154358837,-500.0,0.00010998,2]
[360932186,1747154358862,-569.13455846,0.00010998,2]
[360932187,1747154358887,-500.0,0.00010998,2]
[360932188,1747154358911,-500.0,0.00010998,2]
[360932189,1747154358936,-500.0,0.00010998,2]
[360932190,1747154358961,-500.0,0.00010998,2]
[360932191,1747154358987,-9812.648209,0.00010999,2]
[360932192,1747154361142,-308.21799783,0.00010999,2]
[360932193,1747154365625,-233.35483806,0.00010999,2]
[360932194,1747154367162,-274.6360475,0.00010999,2]
[360932195,1747154368809,-248.55865123,0.00010999,2]
[360932198,1747154413562,-207.61470232,0.0001,2]
[360932199,1747154416717,-400.0,0.0001,2]
[360932200,1747154421364,-235.60804932,0.0001,2]
[360932201,1747154423889,-156.77724836,0.0001,2]
[360932202,1747154423922,-106.37032328,0.00010933,2]
[360932203,1747154425939,-252.05480483,0.00010933,2]
[360932204,1747154427490,-177.77434013,0.00010933,2]
[360932206,1747154431300,-282.03890805,0.00010823,2]
[360932207,1747154432916,-245.55683349,0.00010823,2]
[360932208,1747154435035,-218.78489798,0.00010823,2]
[360932209,1747154438734,-154.10567246,0.00010823,2]
[360932210,1747154440365,-181.19864509,0.00010823,2]
[360932211,1747154442446,-181.0,0.00010823,2]
[360932212,1747154444537,-208.71843324,0.00010823,2]
[360932213,1747154450690,-223.5143695,0.00010823,2]
[360932214,1747154452979,-239.19050477,0.00010823,2]
[360932215,1747154454397,-215.51499047,0.00010823,2]
[360932216,1747154455843,-165.48684912,0.00010823,2]
[360932217,1747154460659,-200.02633474,0.00010823,2]
[360932219,1747154462710,-282.19879271,0.00010823,2]
[360932220,1747154465306,-283.46536939,0.00010823,2]
[360932221,1747154469246,-184.15549261,0.00010823,2]
[360932222,1747154470711,-198.84443814,0.00010823,2]
[360932223,1747154473336,-307.06858814,0.00010823,2]
[360932224,1747154475388,-278.02171983,0.00010823,2]
[360932225,1747154478097,-342.72084089,0.00010823,2]
[360932226,1747154480229,-167.55797143,0.00010823,2]
[360932227,1747154482747,-292.48014679,0.00010823,2]
[360932228,1747154486495,-148.35020116,0.00010823,2]
[360932231,1747154571741,-195.21107159,0.00010359,2]
[360932232,1747154574300,-300.0,0.00010359,2]
[360932233,1747154575932,-300.0,0.00010359,2]
[360932234,1747154577321,-210.47024841,0.00010359,2]
[360932235,1747154580253,-300.58775224,0.00010359,2]
[360932236,1747154583321,-175.44859282,0.00010359,2]
[360932237,1747154585325,-421.5458782,0.00010359,2]
[360932238,1747154590214,-164.83253891,0.00010359,2]
[360932239,1747154592969,-47.07586203,0.00010359,2]
[360932240,1747154592993,-180.03912739,0.00010674,2]
[360932241,1747154594395,-69.96087261,0.00010674,2]
[360932242,1747154594418,-86.23382804,0.00010823,2]
[360932243,1747154596635,-197.58222326,0.00010823,2]
[360932244,1747154599404,-300.0,0.00010823,2]
[360932245,1747154601590,-374.11715932,0.00010823,2]
[360932246,1747154605010,-329.92664359,0.00010823,2]
[360932247,1747154607724,-170.07335641,0.00010823,2]
[360932248,1747154611895,-327.5457519,0.00010823,2]
[360932249,1747154614229,-170.5166775,0.00010823,2]
[360932271,1747154682972,-383.72578254,0.00010715,2]
[360932272,1747154687767,-302.60764617,0.00010715,2]
[360932273,1747154689270,-160.38171384,0.00010715,2]
[360932274,1747154690701,-323.10784727,0.00010715,2]
[360932275,1747154694402,-165.7235016,0.00010715,2]
[360932279,1747154797559,-202.71509368,0.00010715,2]
[360932281,1747154800818,-299.47590942,0.00010715,2]
[360932282,1747154835128,-3162.26250548,0.00010715,2]
[360932283,1747154835150,-1210.61092516,0.00010933,2]
[360932284,1747154835171,-300.0,0.00010996,2]
[360932285,1747154835192,-300.0,0.00010996,2]
[360932286,1747154835212,-300.0,0.00010997,2]
[360932287,1747154835233,-300.0,0.00010997,2]
[360932288,1747154835254,-1200.0,0.00010997,2]
[360932289,1747154835277,-500.0,0.00010997,2]
[360932290,1747154835298,-500.0,0.00010997,2]
[360932291,1747154835320,-324.6323265,0.00010997,2]
[360932292,1747154835341,-500.0,0.00010997,2]
[360932293,1747154835363,-195.72344303,0.00010997,2]
[360932294,1747154836138,-304.27655697,0.00010997,2]
[360932295,1747154836162,-202.83560603,0.00010997,2]
[360932296,1747154836187,-298.65858746,0.00010997,2]
[360932297,1747154836210,-500.0,0.00010997,2]
[360932298,1747154836236,-500.0,0.00010997,2]
[360932299,1747154836261,-500.0,0.00010997,2]
[360932300,1747154836284,-500.0,0.00010997,2]
[360932301,1747154836306,-254.93057216,0.00010997,2]
[360932302,1747154836327,-500.0,0.00010997,2]
[360932303,1747154836349,-500.0,0.00010997,2]
[360932304,1747154836369,-456.91345585,0.00010997,2]
[360932305,1747154836392,-5391.19962853,0.00010999,2]
[360932307,1747154841084,-153.03333801,0.00010833,2]
[360932308,1747154841106,-1386.77367674,0.00010999,2]
[360932309,1747154842567,-194.256175,0.00010999,2]
[360932310,1747154844136,-196.47763723,0.00010999,2]
[360932311,1747154846131,-292.57002246,0.00010999,2]
[360932312,1747154846383,-288.16200006,0.00010999,2]
[360932316,1747154948098,-5000.0,0.00010889,2]
[360932317,1747154948124,-139.15906496,0.00010995,2]
[360932318,1747154950092,-160.84093504,0.00010995,2]
[360932319,1747154950117,-500.0,0.00010996,2]
[360932320,1747154950138,-500.0,0.00010996,2]
[360932321,1747154950160,-500.0,0.00010996,2]
[360932322,1747154950181,-500.0,0.00010996,2]
[360932323,1747154950202,-513.55270836,0.00010996,2]
[360932324,1747154950224,-500.0,0.00010996,2]
[360932325,1747154950248,-500.0,0.00010996,2]
[360932326,1747154950270,-500.0,0.00010996,2]
[360932327,1747154950293,-460.04093561,0.00010996,2]
[360932328,1747154950316,-500.0,0.00010996,2]
[360932329,1747154950341,-500.0,0.00010996,2]
[360932330,1747154950364,-500.0,0.00010996,2]
[360932331,1747154950390,-500.0,0.00010996,2]
[360932332,1747154950413,-482.62862062,0.00010996,2]
[360932333,1747154950435,-500.0,0.00010996,2]
[360932334,1747154950456,-500.0,0.00010996,2]
[360932335,1747154950477,-500.0,0.00010996,2]
[360932336,1747154950500,-500.0,0.00010996,2]
[360932337,1747154950522,-250.54784135,0.00010996,2]
[360932338,1747154950546,-500.0,0.00010996,2]
[360932339,1747154950567,-2432.68828972,0.00010996,2]
[360932340,1747154950589,-2432.68828972,0.00010996,2]
[360932341,1747154950617,-2432.68828972,0.00010996,2]
[360932342,1747154950639,-2432.68828972,0.00010996,2]
[360932343,1747154950660,-2432.68828972,0.00010996,2]
[360932344,1747154950685,-2432.68828972,0.00010996,2]
[360932345,1747154950707,-2432.68828972,0.00010996,2]
[360932346,1747154950730,-2432.68828972,0.00010996,2]
[360932347,1747154950753,-2432.68828972,0.00010996,2]
[360932348,1747154950775,-2432.68828972,0.00010996,2]
[360932349,1747154950798,-2432.68828972,0.00010996,2]
[360932350,1747154950819,-2432.68828972,0.00010996,2]
[360932351,1747154950842,-2432.68828972,0.00010996,2]
[360932352,1747154950864,-2432.68828972,0.00010996,2]
[360932353,1747154950887,-2432.68828972,0.00010996,2]
[360932354,1747154950911,-2432.68828972,0.00010996,2]
[360932355,1747154950936,-2432.68828972,0.00010996,2]
[360932356,1747154950959,-2432.68828972,0.00010996,2]
[360932357,1747154950982,-2432.68828972,0.00010996,2]
[360932358,1747154951004,-2432.68828972,0.00010996,2]
[360932359,1747154951026,-2432.68828972,0.00010996,2]
[360932360,1747154951047,-2432.68828972,0.00010996,2]
[360932361,1747154951069,-2432.68828972,0.00010996,2]
[360932362,1747154951090,-2432.68828972,0.00010996,2]
[360932363,1747154951113,-2432.68828972,0.00010996,2]
[360932364,1747154951137,-2432.68828972,0.00010996,2]
[360932365,1747154951158,-2432.68828972,0.00010996,2]
[360932366,1747154951180,-2432.68828972,0.00010996,2]
[360932367,1747154951201,-2432.68828972,0.00010996,2]
[360932368,1747154951224,-2432.68828972,0.00010996,2]
[360932369,1747154951246,-2432.68828972,0.00010996,2]
[360932370,1747154951267,-2432.68828972,0.00010996,2]
[360932371,1747154951291,-2432.68828972,0.00010996,2]
[360932372,1747154951313,-2432.68828972,0.00010996,2]
[360932373,1747154951335,-2432.68828972,0.00010996,2]
[360932374,1747154951357,-2432.68828972,0.00010996,2]
[360932375,1747154951677,-2432.68828972,0.00010996,2]
[360932376,1747154951704,-2432.68828972,0.00010996,2]
[360932377,1747154951727,-2432.68828972,0.00010996,2]
[360932378,1747154951750,-2432.68828972,0.00010996,2]
[360932379,1747154951774,-2432.68828972,0.00010996,2]
[360932380,1747154951795,-2432.68828972,0.00010996,2]
[360932381,1747154951816,-2432.68828972,0.00010996,2]
[360932382,1747154951838,-2432.68828972,0.00010996,2]
[360932383,1747154951859,-2432.68828972,0.00010996,2]
[360932384,1747154951883,-2432.68828972,0.00010996,2]
[360932385,1747154951905,-2432.68828972,0.00010996,2]
[360932386,1747154951927,-2432.68828972,0.00010996,2]
[360932387,1747154951948,-2401.29876341,0.00010996,2]
[360932388,1747154951971,-2401.29876341,0.00010996,2]
[360932389,1747154951993,-2401.29876341,0.00010996,2]
[360932390,1747154952014,-2401.29876341,0.00010996,2]
[360932391,1747154952035,-2401.29876341,0.00010996,2]
[360932392,1747154952057,-2401.29876341,0.00010996,2]
[360932393,1747154952078,-2401.29876341,0.00010996,2]
[360932394,1747154952098,-2401.29876341,0.00010996,2]
[360932395,1747154952122,-2401.29876341,0.00010996,2]
[360932396,1747154952143,-2401.29876341,0.00010996,2]
[360932397,1747154952164,-2401.29876341,0.00010996,2]
[360932398,1747154952185,-2401.29876341,0.00010996,2]
[360932399,1747154952206,-2401.29876341,0.00010996,2]
[360932400,1747154952227,-2401.29876341,0.00010996,2]
[360932401,1747154952248,-2401.29876341,0.00010996,2]
[360932402,1747154952270,-2401.29876341,0.00010996,2]
[360932403,1747154952292,-2401.29876341,0.00010996,2]
[360932404,1747154952313,-2401.29876341,0.00010996,2]
[360932405,1747154952335,-2401.29876341,0.00010996,2]
[360932406,1747154952356,-2401.29876341,0.00010996,2]
[360932407,1747154952378,-2401.29876341,0.00010996,2]
[360932408,1747154952398,-2401.29876341,0.00010996,2]
[360932409,1747154952420,-2401.29876341,0.00010996,2]
[360932410,1747154952440,-2401.29876341,0.00010996,2]
[360932411,1747154952463,-2401.29876341,0.00010996,2]
[360932412,1747154952484,-2401.29876341,0.00010996,2]
[360932413,1747154952505,-2401.29876341,0.00010996,2]
[360932414,1747154952528,-2401.29876341,0.00010996,2]
[360932415,1747154952549,-2401.29876341,0.00010996,2]
[360932416,1747154952569,-224.01062912,0.00010998,2]
[360932417,1747154952592,-4937.76768992,0.00010999,2]
[360932418,1747154952613,-951.82070888,0.00011,2]
[360932419,1747154952635,-501.52088128,0.00011,2]
[360932420,1747154952658,-500.0,0.00011,2]
[360932421,1747154952680,-500.61705801,0.00011,2]
[360932422,1747154952702,-500.0,0.00011,2]
[360932423,1747154952722,-152.0,0.00011609,2]
[360932424,1747154952745,-652.61296533,0.00011862,2]
[360932425,1747154952768,-153.0,0.0001187,2]